bitfinex-derivatives/quotes_BTCF0:USTF0_20241010
["timestamp","ask_amount","ask_price","bid_price","bid_amount"]
[1728521306545,0.12,60458.0,60457.0,0.58464001]
[1728521306850,0.12,60458.0,60457.0,0.72304001]
[1728521307049,0.121,60458.0,60457.0,0.73304001]
[1728521307239,0.121,60458.0,60457.0,0.89097062]
[1728521307744,0.121,60458.0,60457.0,0.75891872]
[1728521308340,0.121,60458.0,60457.0,0.73304001]
[1728521308647,0.122,60458.0,60457.0,0.74204001]
[1728521308951,0.3608,60466.0,60465.0,0.082762]
[1728521309152,0.4508,60466.0,60465.0,0.082762]
[1728521309337,0.4508,60466.0,60465.0,0.49413133]
[1728521309542,0.4508,60466.0,60465.0,1.02125869]
[1728521309741,0.4508,60466.0,60465.0,1.25410443]
[1728521310146,0.4508,60466.0,60465.0,1.13701114]
[1728521310352,0.4508,60466.0,60465.0,1.02325869]
[1728521310554,0.4508,60466.0,60465.0,1.02425869]
[1728521311649,0.00638106,60474.0,60465.0,2.7140779]
[1728521311846,0.09248106,60474.0,60473.0,0.082751]
[1728521312053,0.0039,60482.0,60473.0,0.25103505]
[1728521312347,0.0039,60482.0,60481.0,0.5508]
[1728521312348,0.1,60482.0,60481.0,0.5508]
[1728521312744,0.1,60482.0,60481.0,0.81538325]
[1728521313450,0.0039,60490.0,60489.0,0.082729]
[1728521313648,0.00248049,60495.0,60494.0,0.19]
[1728521313953,0.09248049,60495.0,60494.0,0.72387687]
[1728521315541,0.17520149,60495.0,60494.0,0.53387687]
[1728521315743,0.17520149,60495.0,60494.0,0.61624696]
[1728521316045,0.09248049,60495.0,60494.0,0.53387687]
[1728521316240,0.18320149,60495.0,60494.0,0.53487687]
[1728521316848,0.19120149,60495.0,60494.0,0.17507687]
[1728521317741,0.10848049,60495.0,60494.0,0.61039987]
[1728521318245,0.106,60495.0,60494.0,0.61039987]
[1728521318442,0.106,60495.0,60494.0,0.80039987]
[1728521318642,0.106,60495.0,60494.0,0.81211651]
[1728521319259,0.106,60495.0,60494.0,1.90803651]
[1728521319452,0.466,60512.0,60504.0,0.272708]
[1728521319453,0.082701,60510.0,60504.0,0.272708]
[1728521319650,0.192701,60510.0,60505.0,0.5032]
[1728521319854,0.192701,60510.0,60505.0,0.62066797]
[1728521320364,0.082702,60509.0,60505.0,0.62066797]
[1728521320549,0.082704,60508.0,60505.0,0.62066797]
[1728521320749,0.082705,60507.0,60505.0,0.62066797]
[1728521321049,0.202705,60507.0,60505.0,0.62166797]
[1728521321559,0.12,60507.0,60505.0,0.62166797]
[1728521322851,0.122,60507.0,60505.0,0.62266797]
[1728521324354,0.122,60507.0,60505.0,0.63416818]
[1728521329056,0.204705,60507.0,60505.0,0.54969512]
[1728521332946,0.122,60507.0,60505.0,0.54965621]
[1728521333155,0.06918609,60506.0,60505.0,0.54965621]
[1728521333347,0.16918609,60506.0,60505.0,0.63236421]
[1728521333552,0.1,60506.0,60505.0,0.76556421]
[1728521334647,0.1,60506.0,60505.0,1.52556421]
[1728521335052,0.092,60506.0,60505.0,1.52556421]
[1728521335255,0.08218999,60506.0,60505.0,2.62851492]
[1728521335459,0.08918999,60506.0,60505.0,2.62851492]
[1728521335649,0.09618999,60506.0,60505.0,2.62951492]
[1728521336255,0.08818999,60506.0,60505.0,2.62140421]
[1728521336450,0.082687,60520.0,60513.0,0.082695]
[1728521336650,0.082687,60520.0,60518.0,0.3608]
[1728521336651,0.23156347,60519.0,60518.0,0.3608]
[1728521336850,0.33156347,60519.0,60518.0,0.3608]
[1728521338357,0.46290869,60519.0,60518.0,0.3608]
[1728521338761,0.46290869,60519.0,60518.0,0.3618]
[1728521339248,0.42281675,60519.0,60518.0,0.22943406]
[1728521339656,0.42281675,60519.0,60518.0,0.24099593]
[1728521340161,0.182688,60519.0,60518.0,0.24199593]
[1728521340457,0.372688,60519.0,60518.0,0.06293011]
[1728521340957,0.372688,60519.0,60518.0,0.01356187]
[1728521342054,0.372688,60519.0,60518.0,0.002]
[1728521343562,0.372688,60519.0,60518.0,0.05141552]
[1728521344462,0.372688,60519.0,60518.0,0.05147676]
[1728521344755,0.372688,60519.0,60518.0,0.002]
[1728521344959,0.372688,60519.0,60518.0,0.05147649]
[1728521345155,0.372688,60519.0,60518.0,0.002]
[1728521345754,0.182688,60519.0,60518.0,0.002]
[1728521346364,0.182688,60519.0,60518.0,0.06782432]
[1728521347161,0.182688,60519.0,60518.0,0.002]
[1728521347362,0.182688,60519.0,60518.0,0.06782432]
[1728521348371,0.182688,60519.0,60518.0,0.002]
[1728521349362,0.182688,60519.0,60518.0,0.08469]
[1728521351768,0.1,60519.0,60518.0,0.08469]
[1728521351967,0.182688,60519.0,60518.0,0.08469]
[1728521356365,0.182688,60519.0,60518.0,0.16706009]
[1728521356571,0.182688,60519.0,60518.0,0.25194221]
[1728521358272,0.182688,60519.0,60518.0,0.16957212]
[1728521360580,0.1,60519.0,60518.0,0.16957212]
[1728521362583,0.1,60519.0,60518.0,0.26849696]
[1728521362779,0.1,60519.0,60518.0,0.16957212]
[1728521363376,0.1,60519.0,60518.0,0.27086649]
[1728521363377,0.182688,60519.0,60518.0,0.27086649]
[1728521364579,0.1,60519.0,60518.0,0.27086649]
[1728521370284,0.1,60519.0,60518.0,0.46086649]
[1728521370487,0.1,60519.0,60518.0,0.58485164]
[1728521372392,0.1,60519.0,60518.0,0.64485164]
[1728521373993,0.1,60519.0,60518.0,1.00565164]
[1728521374592,0.1,60519.0,60518.0,0.81947515]
[1728521374791,0.1,60519.0,60518.0,1.00489075]
[1728521375386,0.04224264,60519.0,60518.0,2.21759505]
[1728521375592,0.082666,60536.0,60519.0,0.165375]
[1728521375905,0.11,60536.0,60534.0,0.19]
[1728521376102,0.11,60536.0,60535.0,0.16725589]
[1728521376399,0.11,60536.0,60535.0,0.35295273]
[1728521376994,0.11,60536.0,60535.0,0.26836384]
[1728521377900,0.104,60536.0,60535.0,0.4522259]
[1728521378099,0.104,60536.0,60535.0,1.2122259]
[1728521378401,0.104,60536.0,60535.0,1.2203567]
[1728521378596,0.102,60536.0,60535.0,1.2203567]
[1728521378801,0.104,60536.0,60535.0,1.2203567]
[1728521379609,0.104,60536.0,60535.0,1.2200373]
[1728521380104,0.096,60536.0,60535.0,1.2119065]
[1728521380403,0.096,60536.0,60535.0,1.22035919]
[1728521380904,0.096,60536.0,60535.0,1.23271301]
[1728521382492,0.088,60536.0,60535.0,1.22426032]
[1728521383004,0.088,60536.0,60535.0,1.23268159]
[1728521384104,0.088,60536.0,60535.0,1.04913893]
[1728521384299,0.088,60536.0,60535.0,1.23135773]
[1728521384899,0.088,60536.0,60535.0,1.23228899]
[1728521385105,0.088,60536.0,60535.0,1.13269801]
[1728521385304,0.3608,60544.0,60535.0,1.12427674]
[1728521385504,0.07,60544.0,60543.0,0.633456]
[1728521385705,0.07,60544.0,60543.0,0.71565768]
[1728521385901,0.07,60544.0,60543.0,0.9710516]
[1728521386106,0.07,60544.0,60543.0,0.88884992]
[1728521386812,0.062,60544.0,60543.0,0.88884992]
[1728521387212,0.062,60544.0,60543.0,0.89725795]
[1728521387414,0.063,60544.0,60543.0,0.89725795]
[1728521388214,0.063,60544.0,60543.0,0.9793985]
[1728521388711,0.063,60544.0,60543.0,0.45305636]
[1728521390615,0.063,60544.0,60543.0,0.82653567]
[1728521396711,0.063,60544.0,60543.0,0.89229287]
[1728521397209,0.063,60544.0,60543.0,0.82653567]
[1728521399114,0.063,60544.0,60543.0,0.99202874]
[1728521399513,0.06317779,60554.0,60543.0,0.99202874]
[1728521399720,0.082642,60553.0,60549.0,0.04936537]
[1728521399910,0.082646,60550.0,60549.0,0.04936537]
[1728521400110,0.082646,60550.0,60547.0,0.19]
[1728521400111,0.082647,60549.0,60547.0,0.25582049]
[1728521400316,0.082649,60548.0,60547.0,0.25582049]
[1728521400614,0.202649,60548.0,60547.0,0.19]
[1728521401606,0.12,60548.0,60547.0,0.19]
[1728521401808,0.12,60548.0,60547.0,0.27227562]
[1728521402008,0.202649,60548.0,60547.0,0.27227562]
[1728521402217,0.203649,60548.0,60547.0,0.27346468]
[1728521402521,0.203649,60548.0,60547.0,0.21346468]
[1728521405521,0.203649,60548.0,60547.0,0.57426468]
[1728521406413,0.203649,60548.0,60547.0,0.67401844]
[1728521407120,0.121,60548.0,60547.0,0.75666844]
[1728521407716,0.121,60548.0,60547.0,0.65691468]
[1728521407918,0.121,60548.0,60547.0,0.73951302]
[1728521408113,0.121,60548.0,60547.0,0.65691468]
[1728521409428,0.121,60548.0,60547.0,0.57426468]
[1728521413727,0.203649,60548.0,60547.0,0.57426468]
[1728521415726,0.203649,60548.0,60547.0,0.4908]
[1728521415933,0.203649,60548.0,60547.0,0.67449339]
[1728521416232,0.333649,60548.0,60543.0,0.04031434]
[1728521416426,0.443453,60545.0,60544.0,0.084075]
[1728521416627,0.693453,60545.0,60544.0,0.084075]
[1728521416838,0.693453,60545.0,60544.0,0.09918689]
[1728521417126,0.563453,60545.0,60544.0,0.09918689]
[1728521417326,0.563453,60545.0,60541.0,0.13]
[1728521417327,0.082654,60544.0,60543.0,0.09918689]
[1728521417628,0.192654,60544.0,60543.0,0.09918689]
[1728521418132,0.192654,60544.0,60542.0,0.082657]
[1728521418432,0.192654,60544.0,60543.0,0.2291185]
[1728521418627,0.192654,60544.0,60543.0,0.22911816]
[1728521419130,0.11,60544.0,60543.0,0.23849818]
[1728521419327,0.11,60544.0,60543.0,0.33761634]
[1728521419924,0.11,60544.0,60543.0,0.23849818]
[1728521421025,0.11,60544.0,60543.0,0.212656]
[1728521425622,0.11,60544.0,60543.0,0.32464013]
[1728521426229,0.11,60544.0,60543.0,0.42109485]
[1728521426831,0.0038,60555.0,60553.0,0.082642]
[1728521427133,0.12,60555.0,60554.0,0.15583913]
[1728521427320,0.12,60555.0,60554.0,0.68549098]
[1728521427526,0.12,60555.0,60554.0,0.65965185]
[1728521427830,0.12,60555.0,60554.0,0.45701085]
[1728521428033,0.12,60555.0,60554.0,0.50868122]
[1728521428233,0.12,60555.0,60554.0,0.63868122]
[1728521428827,0.12,60555.0,60554.0,0.65109085]
[1728521429635,0.12,60555.0,60554.0,0.62525573]
[1728521430830,0.12,60555.0,60554.0,0.59941999]
[1728521431028,0.12,60555.0,60554.0,0.62525518]
[1728521431231,0.12,60555.0,60554.0,0.50320963]
[1728521431541,0.12,60555.0,60554.0,0.60168582]
[1728521431930,0.12,60555.0,60554.0,0.72370735]
[1728521432329,0.12,60555.0,60554.0,0.63752101]
[1728521432636,0.12,60555.0,60554.0,0.73366574]
[1728521432833,0.12,60555.0,60554.0,0.69783055]
[1728521433926,0.12,60555.0,60554.0,0.70783055]
[1728521434132,0.12,60555.0,60554.0,0.61168582]
[1728521435340,0.12,60555.0,60554.0,0.25088582]
[1728521435535,0.12,60555.0,60554.0,0.61168582]
[1728521436038,0.12,60555.0,60554.0,0.25088582]
[1728521436239,0.12,60555.0,60554.0,0.61168582]
[1728521436838,0.12,60555.0,60554.0,0.34693758]
[1728521437046,0.12,60555.0,60554.0,0.70772982]
[1728521437338,0.332639,60555.0,60554.0,0.49798023]
[1728521437746,0.332639,60555.0,60554.0,0.37320963]
[1728521438236,0.332639,60555.0,60554.0,0.39904671]
[1728521438841,0.12,60555.0,60554.0,0.37320963]
[1728521439142,0.12,60555.0,60554.0,0.39904661]
[1728521439443,0.12,60555.0,60554.0,0.52904661]
[1728521439739,0.12,60555.0,60554.0,0.61507775]
[1728521439940,0.12,60555.0,60554.0,0.69771875]
[1728521441240,0.12,60555.0,60554.0,0.67188177]
[1728521441653,0.12,60555.0,60554.0,0.6977154]
[1728521441946,0.12,60555.0,60554.0,0.67188177]
[1728521442133,0.12,60555.0,60554.0,0.80858177]
[1728521442536,0.12,60555.0,60554.0,0.79858177]
[1728521443244,0.12,60555.0,60554.0,1.33330073]
[1728521443438,0.12,60555.0,60554.0,1.55990632]
[1728521444343,0.12,60555.0,60554.0,2.31990632]
[1728521445047,0.12,60555.0,60554.0,2.09330073]
[1728521445936,0.12,60555.0,60554.0,1.99726959]
[1728521448439,0.12,60555.0,60554.0,1.27566959]
[1728521448647,0.12,60555.0,60554.0,1.99726959]
[1728521448948,0.12,60555.0,60554.0,2.02310227]
[1728521451141,0.11240803,60555.0,60554.0,2.02310187]
[1728521451547,0.11240803,60555.0,60554.0,2.03125611]
[1728521452039,0.0038,60564.0,60563.0,0.082628]
[1728521452252,0.0038,60564.0,60563.0,0.202628]
[1728521452253,0.04,60564.0,60563.0,0.202628]
[1728521452753,0.04,60564.0,60563.0,0.22845951]
[1728521453140,0.04,60564.0,60563.0,0.32511582]
[1728521453846,0.04,60564.0,60563.0,0.32411582]
[1728521454039,0.04,60564.0,60563.0,0.32435253]
[1728521454244,0.04,60564.0,60563.0,0.29856532]
[1728521454447,0.04,60564.0,60563.0,0.22845959]
[1728521454753,0.04,60564.0,60563.0,0.32442399]
[1728521455140,0.04,60564.0,60563.0,0.32462152]
[1728521455347,0.04,60564.0,60563.0,0.509513]
[1728521455859,0.04,60564.0,60563.0,0.53534334]
[1728521456347,0.04,60564.0,60563.0,0.65077439]
[1728521456755,0.04,60564.0,60563.0,0.53534334]
[1728521456944,0.04,60564.0,60563.0,0.87031175]
[1728521459755,0.04,60564.0,60563.0,0.87050652]
[1728521460251,0.04,60564.0,60563.0,0.99849665]
[1728521460449,0.04,60564.0,60563.0,1.11016094]
[1728521460758,0.0038,60574.0,60563.0,1.11016094]
[1728521460759,0.0038,60574.0,60563.0,0.99483227]
[1728521460947,0.02,60574.0,60573.0,0.443415]
[1728521461259,0.02,60574.0,60573.0,0.97657601]
[1728521461464,0.02,60574.0,60573.0,0.25497601]
[1728521461649,0.02,60574.0,60570.0,0.12]
[1728521461949,0.2678,60573.0,60571.0,0.18184367]
[1728521462258,0.3878,60573.0,60572.0,0.02582776]
[1728521462763,0.3878,60573.0,60568.0,0.3731954]
[1728521462764,0.54291535,60573.0,60568.0,0.3731954]
[1728521462958,0.07238811,60572.0,60569.0,0.02582971]
[1728521463254,0.07238811,60571.0,60570.0,0.02582971]
[1728521463458,0.17238811,60571.0,60570.0,0.02582971]
[1728521464048,0.17238811,60571.0,60570.0,0.02682971]
[1728521465656,0.17238811,60571.0,60570.0,0.02782971]
[1728521466061,0.29238811,60571.0,60570.0,0.02782971]
[1728521466251,0.29238811,60571.0,60570.0,0.002]
[1728521466446,0.29238811,60571.0,60570.0,0.02783096]
[1728521466652,1.15846811,60571.0,60559.0,0.00104]
[1728521466854,1.15846811,60571.0,60554.0,0.3691948]
[1728521466855,0.4908,60563.0,60558.0,0.0038]
[1728521467055,0.4908,60563.0,60548.0,0.3281]
[1728521467056,0.4908,60563.0,60552.0,0.0038]
[1728521467057,0.082642,60553.0,60552.0,0.0038]
[1728521467246,0.082646,60550.0,60547.0,0.3608]
[1728521467450,0.3912,60549.0,60547.0,0.3692085]
[1728521467654,0.3608,60548.0,60540.0,0.00627738]
[1728521467859,0.3608,60548.0,60542.0,0.082656]
[1728521467860,0.13,60543.0,60542.0,0.082656]
[1728521468061,0.52582,60549.0,60545.0,0.082653]
[1728521468256,0.00084,60548.0,60546.0,0.09035743]
[1728521468463,0.11,60548.0,60546.0,0.09035743]
[1728521469551,0.11,60548.0,60546.0,0.09535743]
[1728521470563,0.11,60548.0,60546.0,0.10135743]
[1728521470865,0.11,60548.0,60546.0,0.01714483]
[1728521471358,0.11,60548.0,60546.0,0.01314483]
[1728521471554,0.11,60548.0,60546.0,0.01414483]
[1728521471757,0.11,60548.0,60546.0,0.01814483]
[1728521472855,0.11,60548.0,60546.0,0.01714483]
[1728521473064,0.11,60548.0,60547.0,0.08265]
[1728521473247,0.11,60548.0,60547.0,0.25562912]
[1728521473752,0.111,60548.0,60547.0,0.69842545]
[1728521474148,0.11,60548.0,60547.0,0.69842545]
[1728521474353,0.11,60548.0,60547.0,0.70242545]
[1728521474650,0.0038,60558.0,60557.0,0.082637]
[1728521474851,0.11,60558.0,60557.0,0.19]
[1728521475051,0.11,60558.0,60557.0,0.272637]
[1728521475255,0.11,60558.0,60557.0,0.44695784]
[1728521475551,0.11,60558.0,60557.0,0.55440487]
[1728521475952,0.11,60558.0,60557.0,0.56693873]
[1728521476154,0.117,60558.0,60557.0,0.56793873]
[1728521476956,0.124,60558.0,60557.0,0.56893873]
[1728521477164,0.124,60558.0,60557.0,0.29630173]
[1728521477571,0.117,60558.0,60557.0,0.29830173]
[1728521477957,0.11,60558.0,60557.0,0.29730173]
[1728521478255,0.11,60558.0,60557.0,0.30030173]
[1728521478756,0.11,60558.0,60557.0,0.32613491]
[1728521479056,0.11,60558.0,60557.0,0.30030173]
[1728521479369,0.11,60558.0,60557.0,0.57293873]
[1728521479559,0.11,60558.0,60557.0,0.70833873]
[1728521479756,0.11,60558.0,60557.0,0.80729439]
[1728521479952,0.11,60558.0,60557.0,0.59877149]
[1728521480761,0.11,60558.0,60557.0,0.40877149]
[1728521481766,0.11,60558.0,60557.0,0.69772715]
[1728521482163,0.11,60558.0,60557.0,0.59877149]
[1728521482868,0.11,60558.0,60557.0,0.50598646]
[1728521483164,0.11,60558.0,60557.0,1.26747993]
[1728521484261,0.11,60558.0,60557.0,0.32612957]
[1728521486165,0.11,60558.0,60557.0,0.32613223]
[1728521487369,0.11,60558.0,60557.0,0.32632338]
[1728521489173,0.382635,60558.0,60557.0,0.03183414]
[1728521489465,0.382635,60558.0,60557.0,0.09767425]
[1728521489669,1.478035,60558.0,60557.0,0.05767433]
[1728521489868,0.082639,60555.0,60554.0,0.06583752]
[1728521490172,0.082641,60554.0,60553.0,0.42663752]
[1728521490368,0.192641,60554.0,60553.0,0.42663752]
[1728521490667,0.688081,60554.0,60553.0,0.42663752]
[1728521491264,0.688081,60554.0,60553.0,0.3608]
[1728521491759,0.688081,60554.0,60553.0,0.3618]
[1728521491958,0.688081,60554.0,60553.0,0.3628]
[1728521492471,0.688081,60554.0,60553.0,0.3618]
[1728521492969,0.192641,60554.0,60553.0,0.3618]
[1728521493274,0.192641,60554.0,60553.0,0.001]
[1728521493567,0.082642,60553.0,60552.0,0.08229156]
[1728521493771,0.192642,60553.0,60552.0,0.08229156]
[1728521494371,0.192642,60553.0,60552.0,0.16431449]
[1728521494573,0.553442,60553.0,60547.0,0.0823842]
[1728521494872,0.082645,60551.0,60550.0,0.06591203]
[1728521495172,0.082647,60549.0,60548.0,0.06591203]
[1728521495363,0.12,60549.0,60548.0,0.06591203]
[1728521495558,0.12,60549.0,60548.0,0.082649]
[1728521495966,0.12,60549.0,60548.0,0.36173299]
[1728521496168,0.12,60549.0,60548.0,0.35945056]
[1728521496464,0.12,60549.0,60548.0,0.54945056]
[1728521496675,0.12,60549.0,60548.0,0.54941759]
[1728521497163,0.12,60549.0,60548.0,0.55241759]
[1728521497772,0.12,60549.0,60548.0,0.55641759]
[1728521498172,0.12,60549.0,60548.0,0.58225474]
[1728521498374,0.12,60549.0,60548.0,0.48385678]
[1728521498575,0.12,60549.0,60548.0,0.48885678]
[1728521499170,0.12,60549.0,60548.0,0.48385678]
[1728521499374,0.121,60549.0,60548.0,0.49285678]
[1728521499770,0.121,60549.0,60548.0,0.49785678]
[1728521499771,0.122,60549.0,60548.0,0.49785678]
[1728521501680,0.204647,60549.0,60548.0,0.14124948]
[1728521501880,0.204647,60549.0,60548.0,0.019]
[1728521502078,0.122,60549.0,60548.0,0.04483943]
[1728521502776,0.204647,60549.0,60548.0,0.04483943]
[1728521504084,1.300127,60549.0,60548.0,0.04483943]
[1728521504287,1.300127,60549.0,60538.0,0.00084]
[1728521504288,0.082658,60541.0,60540.0,0.09891889]
[1728521504483,0.082668,60534.0,60531.0,0.443472]
[1728521504781,0.19,60532.0,60531.0,0.3608]
[1728521505079,0.12,60532.0,60531.0,0.64364454]
[1728521505283,0.12,60532.0,60531.0,0.74013914]
[1728521505580,0.12,60532.0,60531.0,0.65764454]
[1728521505785,0.12,60532.0,60531.0,0.87523016]
[1728521505987,0.12,60532.0,60531.0,0.97151602]
[1728521506492,0.121,60532.0,60531.0,0.96751602]
[1728521506687,0.122,60532.0,60531.0,0.97251602]
[1728521507575,0.121,60532.0,60531.0,0.96751602]
[1728521507779,0.122,60532.0,60531.0,0.96751602]
[1728521507971,0.122,60532.0,60531.0,0.77751602]
[1728521508176,0.122,60532.0,60531.0,0.95751602]
[1728521509483,0.122,60532.0,60531.0,0.76751602]
[1728521509877,0.122,60532.0,60531.0,0.77251602]
[1728521510991,0.121,60532.0,60531.0,0.76751602]
[1728521511183,0.122,60532.0,60531.0,0.96851602]
[1728521511883,0.121,60532.0,60531.0,0.96151602]
[1728521512082,0.121,60532.0,60531.0,0.96851602]
[1728521512083,0.122,60532.0,60531.0,0.96851602]
[1728521512675,0.121,60532.0,60531.0,0.96251602]
[1728521512880,0.122,60532.0,60531.0,0.96951602]
[1728521517191,0.122,60532.0,60531.0,1.33031602]
[1728521517686,0.122,60532.0,60531.0,1.23403016]
[1728521518190,0.16,60551.0,60531.0,2.24695816]
[1728521518388,0.08265,60547.0,60543.0,0.3608]
[1728521518692,0.18265,60547.0,60544.0,0.02584388]
[1728521518991,0.18265,60547.0,60545.0,0.02584388]
[1728521519190,0.18265,60547.0,60543.0,0.3608]
[1728521519487,0.082653,60545.0,60544.0,0.02583993]
[1728521519693,0.202653,60545.0,60544.0,0.02583993]
[1728521520391,0.202653,60545.0,60537.0,0.3608]
[1728521520392,1.21552,60545.0,60537.0,0.3608]
[1728521520588,0.082658,60542.0,60538.0,0.02584091]
[1728521520792,0.082658,60542.0,60539.0,0.10850191]
[1728521520793,0.202658,60542.0,60539.0,0.10850191]
[1728521520992,0.202658,60542.0,60540.0,0.02584091]
[1728521521188,0.202658,60542.0,60541.0,0.02584283]
[1728521521389,0.12,60542.0,60541.0,0.10850083]
[1728521521594,0.12,60542.0,60541.0,0.48459357]
[1728521522894,0.12,60542.0,60541.0,0.58283603]
[1728521523291,0.12,60542.0,60541.0,0.58581499]
[1728521524804,0.12,60542.0,60541.0,0.55997216]
[1728521525187,0.12,60542.0,60541.0,0.58581112]
[1728521525590,0.27510849,60562.0,60541.0,1.68133112]
[1728521525799,0.4128,60561.0,60556.0,0.08241713]
[1728521525986,0.082633,60560.0,60557.0,0.08241713]
[1728521526186,0.11,60560.0,60557.0,0.16505213]
[1728521526394,0.11,60560.0,60557.0,0.08241713]
[1728521526601,0.11,60560.0,60558.0,0.082635]
[1728521526992,0.11,60560.0,60559.0,0.02583896]
[1728521527492,0.11,60560.0,60559.0,0.56027146]
[1728521527493,0.124,60560.0,60559.0,0.56027146]
[1728521527687,0.124,60560.0,60559.0,0.47785433]
[1728521527894,0.124,60560.0,60559.0,0.45201537]
[1728521528397,0.138,60560.0,60559.0,0.47884821]
[1728521528702,0.138,60560.0,60559.0,0.57774877]
[1728521529017,0.124,60560.0,60559.0,0.57674877]
[1728521529209,0.126,60560.0,60559.0,0.47784821]
[1728521529392,0.112,60560.0,60559.0,0.28784821]
[1728521529593,0.126,60560.0,60559.0,0.28884821]
[1728521529989,0.126,60560.0,60559.0,0.28784821]
[1728521529990,0.112,60560.0,60559.0,0.28784821]
[1728521530189,0.113,60560.0,60559.0,0.28784821]
[1728521530797,0.111,60560.0,60559.0,0.29807669]
[1728521531001,0.112,60560.0,60559.0,0.29807669]
[1728521531296,0.112,60560.0,60559.0,0.21544269]
[1728521531495,0.112,60560.0,60559.0,0.09167675]
[1728521531694,0.112,60560.0,60559.0,0.02583284]
[1728521532402,0.194632,60560.0,60559.0,0.02583284]
[1728521533295,0.194632,60560.0,60559.0,0.09165693]
[1728521533496,0.112,60560.0,60559.0,0.09165693]
[1728521533703,0.112,60560.0,60559.0,0.17429093]
[1728521535006,0.112,60560.0,60559.0,0.17429335]
[1728521535398,0.112,60560.0,60559.0,0.36443038]
[1728521535595,0.112,60560.0,60559.0,0.29860629]
[1728521536002,0.112,60560.0,60559.0,0.65940629]
[1728521536305,0.112,60560.0,60559.0,0.68523983]
[1728521536518,0.112,60560.0,60559.0,0.78094556]
[1728521536901,0.112,60560.0,60559.0,1.54094556]
[1728521537101,0.112,60560.0,60559.0,1.54079552]
[1728521538004,0.112,60560.0,60559.0,1.44523983]
[1728521538204,0.112,60560.0,60559.0,1.54080612]
[1728521538913,0.112,60560.0,60559.0,1.51496777]
[1728521539109,0.112,60560.0,60559.0,1.41940148]
[1728521539313,0.112,60560.0,60559.0,1.51484548]
[1728521539513,0.112,60560.0,60559.0,1.54067593]
[1728521540317,0.112,60560.0,60559.0,1.54064573]
[1728521540905,0.082614,60574.0,60561.0,0.082631]
[1728521540906,0.08089149,60574.0,60561.0,0.082631]
[1728521541218,0.19089149,60574.0,60569.0,0.14836941]
[1728521541513,0.19089149,60574.0,60570.0,0.19877272]
[1728521541713,0.19089149,60574.0,60571.0,0.02583045]
[1728521541915,0.19089149,60574.0,60572.0,0.02583045]
[1728521542107,0.20489149,60574.0,60573.0,0.02583045]
[1728521542502,0.082615,60573.0,60570.0,0.17294227]
[1728521542805,0.082615,60573.0,60571.0,0.02582984]
[1728521542806,0.202615,60573.0,60571.0,0.02582984]
[1728521543105,0.202615,60573.0,60572.0,0.02582984]
[1728521543715,0.392615,60573.0,60572.0,0.02582984]
[1728521543917,0.406615,60573.0,60572.0,0.02582984]
[1728521544119,0.533515,60573.0,60572.0,0.02582984]
[1728521544615,1.628795,60573.0,60572.0,0.02582984]
[1728521544822,0.082622,60568.0,60567.0,0.06574941]
[1728521545119,0.082626,60565.0,60560.0,0.082631]
[1728521545415,0.19,60562.0,60560.0,0.26133299]
[1728521545619,0.32,60562.0,60560.0,0.26133299]
[1728521545915,0.32,60562.0,60561.0,0.082631]
[1728521546417,0.32,60562.0,60561.0,0.2552902]
[1728521546822,0.323,60562.0,60561.0,0.2552902]
[1728521547319,0.326,60562.0,60561.0,0.2552902]
[1728521548517,0.326,60562.0,60559.0,0.10090825]
[1728521548518,0.76943,60562.0,60559.0,0.10090825]
[1728521548714,0.082632,60560.0,60559.0,0.00846677]
[1728521549021,0.082637,60557.0,60553.0,0.09279884]
[1728521549223,0.5508,60556.0,60553.0,0.10115015]
[1728521549415,0.5508,60556.0,60554.0,0.17498694]
[1728521549416,0.6608,60556.0,60554.0,0.17498694]
[1728521549931,0.6608,60556.0,60555.0,0.082639]
[1728521549932,0.4708,60556.0,60555.0,0.082639]
[1728521550110,0.11,60556.0,60555.0,0.082639]
[1728521550818,0.111,60556.0,60555.0,0.082639]
[1728521551125,0.111,60556.0,60555.0,0.272639]
[1728521551309,0.111,60556.0,60555.0,0.5508357]
[1728521551509,0.111,60556.0,60555.0,0.6834357]
[1728521551727,0.111,60556.0,60555.0,0.68060653]
[1728521552422,0.11,60556.0,60555.0,0.68160653]
[1728521553026,0.11,60556.0,60555.0,0.68460653]
[1728521555226,0.11,60556.0,60555.0,1.1608548]
[1728521555826,0.11,60556.0,60555.0,1.16067797]
[1728521556229,0.11,60556.0,60555.0,1.1801297]
[1728521556927,0.11,60556.0,60555.0,0.8575297]
[1728521560225,0.11,60556.0,60555.0,0.85762475]
[1728521561321,0.11,60556.0,60555.0,0.88345853]
[1728521561735,0.11,60556.0,60555.0,0.85762475]
[1728521562331,0.11,60556.0,60555.0,0.78774536]
[1728521562632,0.11,60556.0,60555.0,0.88344619]
[1728521562838,0.11,60556.0,60555.0,0.8834461]
[1728521563622,0.498,60569.0,60556.0,0.082637]
[1728521563824,0.650621,60569.0,60566.0,0.08247115]
[1728521564033,0.650621,60569.0,60567.0,0.08247115]
[1728521564529,0.4308,60569.0,60567.0,0.27247115]
[1728521564734,0.4308,60569.0,60568.0,0.26196153]
[1728521565437,0.4408,60569.0,60568.0,0.26196153]
[1728521566133,0.08,60569.0,60568.0,0.26196153]
[1728521566331,0.09,60569.0,60568.0,0.35848743]
[1728521566544,0.09,60569.0,60568.0,0.3841161]
[1728521567935,0.09,60569.0,60568.0,0.39398757]
[1728521568737,0.09,60569.0,60568.0,0.39398689]
[1728521570136,0.09,60569.0,60568.0,0.39393384]
[1728521572531,0.09,60569.0,60568.0,0.21604069]
[1728521574640,0.17262,60569.0,60568.0,0.01087147]